fUST/lending_fUST_20260118
["ID","MTS","AMOUNT","RATE_DAILY","PERIOD"]
[402654114,1768747839773,-729.0,0.0001734,2]
[402654115,1768747839781,-5000.0,0.00017412,2]
[402654116,1768747839792,-729.0,0.00017415,2]
[402654117,1768747839801,-696.2,0.00017434,2]
[402654118,1768747839811,-729.0,0.00017524,2]
[402654119,1768747839820,-729.0,0.00017524,2]
[402654120,1768747839830,-3875.0,0.00017531,2]
[402654121,1768747839840,-500.0,0.00017534,2]
[402654122,1768747839849,-729.0,0.00017561,2]
[402654123,1768747839859,-3875.0,0.00017597,2]
[402654124,1768747839869,-478.75725327,0.00017613,2]
[402654125,1768747839878,-2312.83697232,0.00017613,2]
[402654126,1768747839887,-729.0,0.00017624,2]
[402654127,1768747839897,-3875.0,0.00017634,2]
[402654128,1768747839906,-648.57768775,0.00017651,2]
[402654130,1768747839915,-729.0,0.0001766,2]
[402654131,1768747839925,-160.0,0.0001766,2]
[402654132,1768747839934,-3875.0,0.000177,2]
[402654133,1768747839944,-729.0,0.000177,2]
[402654134,1768747839953,-729.0,0.00017735,2]
[402654135,1768747839963,-3875.0,0.00017762,2]
[402654136,1768747839973,-2000.0,0.00017774,7]
[402654137,1768747839984,-3875.0,0.00017792,2]
[402654138,1768747839995,-738.0,0.00017792,2]
[402654139,1768747840006,-14387.40759267,0.000178,3]
[402654140,1768747840017,-500.0,0.00017808,2]
[402654153,1768747840201,-729.0,0.00017881,2]
[402654154,1768747840214,-3875.0,0.00017881,2]
[402654155,1768747840225,-1000.0,0.0001794,2]
[402654156,1768747840235,-38000.0,0.0001795,3]
[402654157,1768747840245,-38000.0,0.00017959,3]
[402654158,1768747840256,-38000.0,0.00017968,3]
[402654159,1768747840267,-38000.0,0.00017976,3]
[402654160,1768747840276,-160.0,0.0001798,2]
[402654161,1768747840286,-729.0,0.0001798,2]
[402654162,1768747840297,-395.132208,0.00017981,2]
[402654163,1768747840306,-1668.94597884,0.00017982,2]
[402654164,1768747840315,-38000.0,0.00017985,3]
[402654165,1768747840325,-38000.0,0.00017994,3]
[402654166,1768747840335,-38000.0,0.00018003,3]
[402654167,1768747840347,-1040.51198783,0.00018003,3]
[402654168,1768747840357,-38000.0,0.00018012,3]
[402654169,1768747840368,-38000.0,0.0001802,3]
[402654170,1768747840378,-38000.0,0.00018029,3]
[402654171,1768747840388,-38000.0,0.00018038,3]
[402654172,1768747840400,-38000.0,0.00018047,3]
[402654173,1768747840410,-729.0,0.00018055,2]
[402654174,1768747840419,-38000.0,0.00018056,3]
[402654175,1768747840429,-38000.0,0.00018064,3]
[402654176,1768747840439,-38000.0,0.00018073,3]
[402654177,1768747840448,-38000.0,0.00018082,3]
[402654178,1768747840458,-500.0,0.00018082,2]
[402654179,1768747840470,-496.47127164,0.00018161,2]
[402654180,1768747840480,-2121.23539332,0.00018161,2]
[402654181,1768747840489,-729.0,0.00018237,2]
[402654182,1768747840499,-729.0,0.000183,2]
[402654183,1768747840509,-1470.0,0.000183,2]
[402654184,1768747840518,-500.0,0.00018356,2]
[402654185,1768747840528,-250.0,0.00018356,2]
[402654186,1768747840539,-696.2,0.00018431,2]
[402654187,1768747840548,-173.43533131,0.00018485,18]
[402654188,1768747840558,-9282.50501487,0.00018534,2]
[402654189,1768747840568,-2000.0,0.00018589,7]
[402654190,1768747840579,-211.99082696,0.00018599,2]
[402654191,1768747840589,-500.0,0.0001863,2]
[402654192,1768747840599,-729.0,0.00018695,2]
[402654193,1768747840610,-514.84070869,0.00018709,2]
[402654194,1768747840630,-5000.0,0.00018863,2]
[402654195,1768747840644,-303.10001603,0.000189,2]
[402654196,1768747840655,-303.10001603,0.000189,2]
[402654197,1768747840665,-500.0,0.00018904,2]
[402654198,1768747840676,-201.20375973,0.00018904,2]
[402654199,1768747840686,-173.43533131,0.00018967,19]
[402654200,1768747840697,-303.10001603,0.00019089,2]
[402654201,1768747840708,-303.10001603,0.00019089,2]
[402654202,1768747840719,-379.14,0.000191,2]
[402654203,1768747840729,-500.0,0.00019178,2]
[402654204,1768747840740,-1602.80018467,0.00019219,2]
[402654205,1768747840751,-2148.0,0.00019225,2]
[402654206,1768747840763,-1367.0,0.00019225,2]
[402654207,1768747840774,-629.0,0.00019225,2]
[402654208,1768747840785,-533.88981491,0.00019257,2]
[402654209,1768747840796,-303.10001603,0.00019278,2]
[402654210,1768747840807,-303.10001603,0.00019278,2]
[402654211,1768747840818,-389.45,0.000193,2]
[402654212,1768747840830,-383.78,0.000193,2]
[402654213,1768747840841,-36319.38,0.000193,2]
[402654214,1768747840852,-6498.68,0.000193,2]
[402654215,1768747840864,-167.88,0.000193,2]
[402654216,1768747840874,-2000.0,0.00019404,7]
[402654217,1768747840884,-696.2,0.00019427,2]
[402654218,1768747840895,-173.43533131,0.00019449,21]
[402654219,1768747840905,-500.0,0.00019452,2]
[402654220,1768747840915,-303.10001603,0.00019467,2]
[402654221,1768747840926,-303.10001603,0.00019467,2]
[402654222,1768747840937,-716.45209693,0.00019651,2]
[402654223,1768747840947,-303.10001603,0.00019656,2]
[402654224,1768747840958,-303.10001603,0.00019656,2]
[402654225,1768747840968,-500.0,0.00019726,2]
[402654226,1768747840978,-933.0,0.000198,2]
[402654227,1768747840989,-195.02544889,0.00019805,2]
[402654228,1768747840999,-454.65002405,0.00019845,4]
[402654229,1768747841010,-454.65002405,0.00019845,4]
[402654230,1768747841020,-173.43533131,0.00019931,22]
[402654231,1768747841030,-500.0,0.0002,2]
[402654232,1768747841040,-8568.0,0.0002,2]
[402654233,1768747841050,-154.823965,0.0002,2]
[402654234,1768747841060,-6000.0,0.0002,2]
[402654235,1768747841070,-500.0,0.0002,10]
[402654236,1768747841080,-687.87,0.0002,25]
[402654237,1768747841090,-300.0,0.0002,2]
[402654238,1768747841100,-454.65002405,0.00020034,4]
[402654239,1768747841111,-454.65002405,0.00020034,4]
[402654240,1768747841121,-500.0,0.000201,7]
[402654241,1768747841135,-3875.0,0.00020137,2]
[402654242,1768747841146,-2000.0,0.00020219,7]
[402654243,1768747841156,-454.65002405,0.00020223,4]
[402654244,1768747841167,-454.65002405,0.00020223,4]
[402654245,1768747841178,-500.0,0.00020274,2]
[402654246,1768747841188,-454.65002405,0.00020412,4]
[402654247,1768747841199,-423.96709503,0.00020412,4]
[402654248,1768747841209,-173.43533131,0.00020414,24]
[402654249,1768747841220,-696.2,0.00020423,2]
[402654250,1768747841230,-3875.0,0.00020457,2]
[402654251,1768747841241,-5229.37,0.00020547,2]
[402654252,1768747841251,-500.0,0.00020548,2]
[402654253,1768747841261,-871.189905,0.00020548,2]
[402654254,1768747841271,-454.65002405,0.00020601,4]
[402654255,1768747841283,-500.0,0.00020822,2]
[402654256,1768747841292,-173.43533131,0.00020896,25]
[402654257,1768747841303,-6498.68,0.000209,2]
[402654258,1768747841314,-320.19130124,0.00020932,3]
[402654259,1768747841326,-500.0,0.00021,7]
[402654260,1768747841336,-500.0,0.00021,15]
[402654261,1768747841347,-2000.0,0.00021034,7]
[402654262,1768747841357,-729.0,0.00021036,2]
[402654263,1768747841367,-3875.0,0.00021036,2]
[402654264,1768747841377,-729.0,0.00021036,2]
[402654265,1768747841388,-500.0,0.00021096,2]
[402654266,1768747841400,-500.0,0.0002137,2]
[402654267,1768747841410,-173.43533131,0.00021378,26]
[402654268,1768747841419,-395.132208,0.00021406,2]
[402654269,1768747841429,-696.2,0.00021419,2]
[402654270,1768747841440,-9459.32772852,0.00021453,2]
[402654271,1768747841449,-36319.38,0.000215,2]
[402654272,1768747841463,-9282.50501487,0.00021512,2]
[402654273,1768747841473,-500.0,0.00021644,2]
[402654274,1768747841483,-784.32650612,0.00021651,2]
[402654275,1768747841493,-2000.0,0.00021849,7]
[402654276,1768747841503,-173.43533131,0.0002186,28]
[402654277,1768747841513,-389.45,0.000219,2]
[402654278,1768747841523,-383.78,0.000219,2]
[402654279,1768747841533,-500.0,0.00021918,5]
[402654280,1768747841543,-184.0,0.00022,2]
[402654281,1768747841554,-729.0,0.00022021,2]
[402654282,1768747841564,-198.0,0.00022027,6]
[402654283,1768747841574,-1471.87,0.000221,2]
[402654284,1768747841584,-503.23,0.000221,7]
[402654285,1768747841594,-500.0,0.000221,7]
[402654286,1768747841604,-213.53,0.00022192,5]
[402654287,1768747841614,-2148.0,0.00022225,2]
[402654288,1768747841624,-1367.0,0.00022225,2]
[402654289,1768747841634,-629.0,0.00022225,2]
[402654290,1768747841643,-173.43533131,0.00022342,29]
[402654291,1768747841654,-696.2,0.00022416,2]
[402654292,1768747841664,-300.0,0.00022466,2]
[402654293,1768747841674,-250.0,0.00022466,2]
[402654294,1768747841683,-200.0,0.00022466,2]
[402654295,1768747841693,-9459.32772846,0.00022552,2]
[402654296,1768747841702,-2000.0,0.00022664,7]
[402654297,1768747841712,-183.98079226,0.00022802,2]
[402654298,1768747841722,-173.43533131,0.00022824,30]
[402654299,1768747841732,-1041.66666667,0.00023,3]
[402654300,1768747841742,-11078.43996168,0.00023,7]
[402654301,1768747841752,-450.0,0.00023014,2]
[402654302,1768747841762,-350.0,0.00023014,2]
[402654303,1768747841771,-250.0,0.00023014,2]
[402654304,1768747841782,-500.0,0.000231,7]
[402654305,1768747841792,-199.0,0.00023123,9]
[402654306,1768747841804,-5229.37,0.00023287,4]
[402654307,1768747841813,-173.43533131,0.00023306,30]
[402654308,1768747841823,-696.2,0.00023412,2]
[402654309,1768747841832,-2000.0,0.00023479,7]
[402654310,1768747841842,-600.0,0.00023562,2]
[402654311,1768747841851,-450.0,0.00023562,2]
[402654312,1768747841861,-211.23470705,0.00023562,2]
[402654313,1768747841870,-160.0,0.00023583,3]
[402654314,1768747841880,-9459.32772846,0.0002365,2]
[402654315,1768747841890,-852.2009153,0.00023651,2]
[402654316,1768747841900,-6498.68,0.000237,14]
[402654317,1768747841910,-167.88,0.000237,7]
[402654318,1768747841919,-2010.87928147,0.00023713,2]
[402654319,1768747841929,-173.43533131,0.00023789,30]
[402654320,1768747841939,-2550.0,0.0002387,10]
[402654321,1768747841950,-309.0,0.0002387,10]
[402654322,1768747841959,-257.0,0.0002387,10]
[402654323,1768747841968,-729.0,0.00023903,3]
[402654324,1768747841978,-1041.66666667,0.00024,7]
[402654325,1768747841988,-1023.77413932,0.00024,2]
[402654326,1768747841997,-200.0,0.00024078,30]
[402654327,1768747842007,-200.0,0.00024078,30]
[402654328,1768747842016,-200.0,0.00024078,30]
[402654329,1768747842025,-503.23,0.000241,7]
[402654330,1768747842035,-750.0,0.0002411,2]
[402654331,1768747842045,-550.0,0.0002411,2]
[402654332,1768747842054,-1471.87,0.000242,2]
[402654333,1768747842064,-36319.38,0.000242,2]
[402654334,1768747842073,-201.0,0.00024219,12]
[402654335,1768747842083,-346.77066261,0.00024271,30]
[402654336,1768747842092,-2000.0,0.00024295,7]
[402654337,1768747842102,-696.2,0.00024408,2]
[402654338,1768747842111,-5000.0,0.00024435,2]
[402654339,1768747842121,-800.0,0.00024482,2]
[402654340,1768747842131,-9282.50501487,0.0002449,2]
[402654341,1768747842141,-389.45,0.000245,7]
[402654342,1768747842151,-383.78,0.000245,7]
[402654343,1768747842160,-202.0,0.00024572,120]
[402654344,1768747842170,-738.73394624,0.00024658,2]
[402654345,1768747842180,-650.0,0.00024658,2]
[402654346,1768747842190,-288.00242933,0.00024658,2]
[402654347,1768747842199,-9591.58,0.000247,3]
[402654348,1768747842210,-9459.32772846,0.00024749,2]
[402654349,1768747842219,-438.0092033,0.00024767,2]
[402654350,1768747842229,-407.94719192,0.00024767,2]
[402654351,1768747842239,-1630.15697892,0.00024767,2]
[402654352,1768747842249,-782.73604303,0.00024767,2]
[402654353,1768747842259,-3127.81322794,0.00024767,2]
[402654354,1768747842269,-200.0,0.00024799,2]
[402654355,1768747842279,-395.132208,0.00024831,2]
[402654356,1768747842289,-201.98350775,0.00024899,2]
[402654357,1768747842298,-641937.696397,0.000249,2]
[402654358,1768747842308,-244.0,0.00025,120]
[402654359,1768747842318,-168.0,0.00025,7]
[402654360,1768747842328,-293.36756331,0.00025,30]
[402654361,1768747842338,-1021.0,0.00025,2]
[402654362,1768747842348,-500.0,0.000251,7]
[402654363,1768747842358,-2000.0,0.0002511,7]
[402654364,1768747842367,-5000.0,0.00025157,2]
[402654365,1768747842376,-750.0,0.00025205,2]
[402654366,1768747842386,-154.87231411,0.00025206,2]
[402654367,1768747842401,-500.0,0.00025206,2]
[402654368,1768747842411,-2148.0,0.00025225,2]
[402654369,1768747842421,-1367.0,0.00025225,2]
[402654370,1768747842430,-629.0,0.00025225,2]
[402654371,1768747842442,-6498.68,0.000253,14]
[402654372,1768747842451,-202.0,0.00025315,16]
[402654373,1768747842460,-500.0,0.00025343,2]
[402654374,1768747842472,-800.0,0.00025364,2]
[402654376,1768747842483,-696.2,0.00025404,2]
[402654377,1768747842493,-167.62815371,0.00025425,30]
[402654378,1768747842502,-3000.0,0.00025479,7]
[402654379,1768747842512,-500.0,0.0002548,2]
[402654380,1768747842521,-503.23,0.000255,7]
[402654381,1768747842530,-167.62815371,0.00025562,30]
[402654382,1768747842539,-500.0,0.00025617,2]
[402654383,1768747842549,-920.07532448,0.00025651,2]
[402654384,1768747842558,-167.62815371,0.00025671,30]
[402654385,1768747842568,-36319.38,0.000257,2]
[402654387,1768747842578,-850.0,0.00025753,2]
[402654389,1768747842588,-305.1488827,0.00025753,2]
[402654390,1768747842598,-194.3662609,0.00025753,2]
[402654391,1768747842607,-305.1488827,0.00025753,2]
[402654392,1768747842617,-305.1488827,0.00025753,2]
[402654393,1768747842627,-194.3662609,0.00025753,2]
[402654394,1768747842637,-194.3662609,0.00025753,2]
[402654395,1768747842646,-188.66022188,0.00025754,2]
[402654396,1768747842656,-500.0,0.00025754,2]
[402654397,1768747842665,-202.0,0.00025801,120]
[402654398,1768747842675,-167.62815371,0.00025808,30]
[402654399,1768747842684,-9459.32772846,0.00025847,2]
[402654400,1768747842694,-5000.0,0.00025879,2]
[402654401,1768747842704,-168.0,0.0002589,7]
[402654402,1768747842713,-250.0,0.00025891,2]
[402654403,1768747842791,-500.0,0.00025891,2]
[402654404,1768747842801,-800.0,0.00025908,2]
[402654405,1768747842810,-167.62815371,0.00025918,30]
[402654406,1768747842819,-2000.0,0.00025925,7]
[402654407,1768747842829,-241.0,0.00025937,120]
[402654408,1768747842838,-1471.87,0.00026,2]
[402654409,1768747842848,-1021.0,0.00026,2]
[402654410,1768747842857,-1041.66666667,0.00026,7]
[402654411,1768747842867,-5229.37,0.00026027,6]
[402654412,1768747842876,-500.0,0.00026028,2]
[402654413,1768747842885,-167.62815371,0.00026055,30]
[402654414,1768747842895,-800.0,0.00026144,2]
[402654415,1768747842904,-167.62815371,0.00026164,30]
[402654416,1768747842914,-500.0,0.00026165,2]
[402654417,1768747842924,-167.62815371,0.00026301,30]
[402654418,1768747842933,-950.0,0.00026301,2]
[402654419,1768747842942,-500.0,0.00026302,2]
[402654420,1768747842951,-696.2,0.00026401,5]
[402654421,1768747842960,-167.62815371,0.00026411,30]
[402654422,1768747842969,-204.0,0.00026411,20]
[402654423,1768747842978,-3875.0,0.0002643,3]
[402654424,1768747842987,-500.0,0.00026439,2]
[402654425,1768747842997,-389.45,0.000265,7]
[402654426,1768747843006,-383.78,0.000265,7]
[402654427,1768747843015,-6498.68,0.000265,14]
[402654428,1768747843024,-167.88,0.000265,7]
[402654429,1768747843033,-4811.5329304,0.000265,2]
[402654430,1768747843042,-167.62815371,0.00026548,30]
[402654431,1768747843052,-2160.17879379,0.00026575,2]
[402654432,1768747843061,-3000.0,0.00026575,7]
[402654433,1768747843071,-194.3662609,0.00026575,2]
[402654434,1768747843081,-194.3662609,0.00026575,2]
[402654435,1768747843090,-194.3662609,0.00026575,2]
[402654436,1768747843099,-194.3662609,0.00026575,2]
[402654437,1768747843108,-194.3662609,0.00026575,2]
[402654438,1768747843117,-194.3662609,0.00026575,2]
[402654439,1768747843127,-194.3662609,0.00026575,2]
[402654440,1768747843136,-194.3662609,0.00026575,2]
[402654441,1768747843145,-194.3299959,0.00026575,2]
[402654442,1768747843155,-194.3662609,0.00026575,2]
[402654443,1768747843164,-194.3662609,0.00026575,2]
[402654444,1768747843173,-194.3662609,0.00026575,2]
[402654445,1768747843183,-500.0,0.00026576,2]
[402654446,1768747843193,-503.23,0.000266,7]
[402654447,1768747843203,-10000.0,0.000266,2]
[402654448,1768747843215,-5000.0,0.00026601,2]
[402654449,1768747843225,-167.62815371,0.00026658,30]
[402654450,1768747843235,-10000.0,0.000267,2]
[402654451,1768747843245,-500.0,0.00026713,2]
[402654452,1768747843254,-2000.0,0.0002674,7]
[402654453,1768747843263,-3875.0,0.0002675,3]
[402654454,1768747843273,-3875.0,0.0002675,3]
[402654455,1768747843282,-167.62815371,0.00026795,30]
[402654456,1768747843292,-10000.0,0.000268,2]
[402654457,1768747843302,-800.0,0.00026847,2]
[402654458,1768747843311,-974.98872882,0.00026849,2]
[402654459,1768747843321,-500.0,0.0002685,2]
[402654460,1768747843330,-2000.0,0.00026857,120]
[402654461,1768747843340,-21454.2508427,0.00026867,2]
[402654462,1768747843349,-151.0,0.00026867,7]
[402654463,1768747843359,-151.0,0.00026867,7]
[402654464,1768747843369,-151.0,0.00026867,7]
[402654465,1768747843379,-155.709874,0.00026867,7]
[402654466,1768747843389,-317.901714,0.00026867,7]
[402654467,1768747843400,-151.0,0.00026867,7]
[402654468,1768747843409,-317.901714,0.00026867,7]
[402654469,1768747843419,-151.0,0.00026867,7]
[402654470,1768747843428,-317.901714,0.00026867,7]
[402654471,1768747843437,-151.0,0.00026867,7]
[402654472,1768747843446,-151.0,0.00026867,7]
[402654473,1768747843455,-36319.38,0.000269,2]
[402654474,1768747843465,-10000.0,0.000269,2]
[402654475,1768747843474,-9459.32772846,0.00026946,2]
[402654476,1768747843483,-500.0,0.00026987,2]
[402654477,1768747843493,-182407.63327511,0.00027,7]
[402654478,1768747843503,-7069.72348763,0.00027,2]
[402654479,1768747843512,-10000.0,0.00027,2]
[402654480,1768747843520,-1501.4,0.00027,3]
[402654481,1768747843530,-151.91326675,0.00027,3]
[402654482,1768747843539,-1021.0,0.00027,2]
[402654483,1768747843548,-1041.66666667,0.00027,7]
[402654484,1768747843558,-202.0,0.00027091,120]
[402654485,1768747843567,-10000.0,0.000271,2]
[402654486,1768747843576,-800.0,0.00027101,2]
[402654487,1768747843585,-800.0,0.00027113,2]
[402654488,1768747843594,-500.0,0.00027124,2]
[402654489,1768747843603,-162.23044371,0.00027156,5]
[402654490,1768747843612,-6513.81815447,0.000272,2]
[402654491,1768747843621,-10000.0,0.000272,2]
[402654492,1768747843630,-1601.064488,0.000272,5]
[402654493,1768747843640,-1000.0,0.0002722,5]
[402654494,1768747843650,-241.0,0.00027234,120]
[402654495,1768747843659,-1000.0,0.0002724,5]
[402654496,1768747843669,-1000.0,0.0002726,5]
[402654497,1768747843678,-500.0,0.00027261,2]
[402654498,1768747843687,-1000.0,0.0002728,5]
[402654499,1768747843695,-1211.941508,0.0002728,5]
[402654500,1768747843704,-200.0,0.000273,24]
[402654501,1768747843714,-10000.0,0.000273,2]
[402654502,1768747843724,-1000.0,0.000273,5]
[402654503,1768747843733,-1000.0,0.000273,5]
[402654504,1768747843743,-250.0,0.000273,10]
[402654505,1768747843752,-5000.0,0.00027324,2]
[402654506,1768747843762,-419.28508191,0.0002738,120]
[402654507,1768747843771,-112311.14160875,0.0002739,2]
[402654508,1768747844024,-317.901714,0.00026867,7]
[402654509,1768747844033,-144.083286,0.0002739,2]
[402654510,1768747844108,997.35,9.416e-05,2]
[402654511,1768747844132,4002.65,9.416e-05,2]
[402654517,1768747845088,-151.0,0.00026867,7]
[402654518,1768747845097,-18.07635778,0.00026867,7]
[402654536,1768747850818,155.0,0.000134,60]
[402654537,1768747864763,338.05,7.479e-05,2]
[402654538,1768747864938,676.1,8.159e-05,2]
[402654539,1768747865341,1014.14,8.839e-05,2]
[402654540,1768747876682,-1352.19,9.519e-05,2]
[402654542,1768747943583,295.02,8.004e-05,2]
[402654543,1768747944025,590.05,8.731e-05,2]
[402654544,1768748024518,283.76,7.848e-05,2]
[402654545,1768748024944,567.52,8.562e-05,2]
[402654547,1768748056105,5000.0,9.149e-05,2]
[402654548,1768748078516,3263.66,9.149e-05,2]
[402654549,1768748078539,1736.34,9.149e-05,2]
[402654550,1768748105963,272.92,7.328e-05,2]
[402654551,1768748106399,545.85,7.994e-05,2]
[402654552,1768748106833,818.77,8.66e-05,2]
[402654553,1768748185563,252.08,7.444e-05,2]
[402654554,1768748186017,504.17,8.121e-05,2]
[402654555,1768748186455,756.25,8.797e-05,2]
[402654557,1768748264438,232.83,7.407e-05,2]
[402654558,1768748264848,465.67,8.08e-05,2]
[402654559,1768748265778,698.5,8.753e-05,2]
[402654560,1768748345253,215.05,7.388e-05,2]
[402654561,1768748345911,430.11,8.059e-05,2]
[402654562,1768748346107,645.16,8.731e-05,2]
[402654564,1768748425666,198.63,7.464e-05,2]
[402654565,1768748426107,397.26,8.142e-05,2]
[402654566,1768748426533,595.89,8.821e-05,2]
[402654568,1768748460304,1234.53,9.14e-05,2]
[402654569,1768748460328,7735.47,9.14e-05,2]
[402654570,1768748496749,-1062.19945404,9.24e-05,2]
[402654571,1768748498819,-202.96,9.24e-05,2]
[402654572,1768748501800,-285.72550606,9.24e-05,2]
[402654573,1768748504524,-174.85066577,9.24e-05,2]
[402654574,1768748505965,-201.04734198,9.24e-05,2]
[402654575,1768748507205,183.46,7.397e-05,2]
[402654576,1768748507649,366.93,8.069e-05,2]
[402654577,1768748508028,-403.45494146,9.24e-05,2]
[402654578,1768748508102,550.39,8.742e-05,2]
[402654579,1768748509766,-261.97235303,9.24e-05,2]
[402654580,1768748511744,-288.78131834,9.24e-05,2]
[402654581,1768748514976,-206.78,9.24e-05,2]
[402654583,1768748582715,1354.031315,8.575e-05,2]
[402654584,1768748587057,169.45,7.519e-05,2]
[402654585,1768748587486,338.91,8.202e-05,2]
[402654587,1768748587929,508.36,8.886e-05,2]
[402654589,1768748665022,160.75,7.447e-05,2]
[402654590,1768748665568,321.5,8.124e-05,2]
[402654591,1768748665979,482.24,8.801e-05,2]
[402654592,1768748682282,5000.0,9.15e-05,2]
[402654593,1768748705337,563.988685,9.15e-05,2]
[402654594,1768748705363,4436.011315,9.15e-05,2]
[402654595,1768748727833,5000.0,9.15e-05,2]
[402654596,1768748744312,186.59,7.045e-05,2]
[402654597,1768748744742,373.18,7.38e-05,2]
[402654598,1768748745155,4.228685,7.715e-05,2]
[402654599,1768748745183,555.541315,7.715e-05,2]
[402654600,1768748745659,746.37,8.051e-05,2]
[402654601,1768748746073,932.96,8.386e-05,2]
[402654602,1768748746631,1119.55,8.722e-05,2]
[402654603,1768748747060,1306.14,9.057e-05,2]
[402654604,1768748750803,5000.0,9.15e-05,2]
[402654605,1768748759748,339.448685,9.15e-05,2]
[402654606,1768748759773,717.551315,9.15e-05,2]
[402654607,1768748774761,5000.0,9.15e-05,2]
[402654608,1768748798127,4282.458685,9.15e-05,2]
[402654609,1768748798154,717.541315,9.15e-05,2]
[402654610,1768748820553,800.10801934,9.15e-05,2]
[402654611,1768748822282,240.19,8.082e-05,2]
[402654612,1768748822725,360.29,8.45e-05,2]
[402654613,1768748823162,480.39,8.817e-05,2]
[402654614,1768748842925,5000.0,9.15e-05,2]
[402654615,1768748855463,-600.49,9.184e-05,2]
[402654616,1768748880081,199.12,1.998e-05,2]
[402654617,1768748880408,199.11,1.998e-05,2]
[402654621,1768748899198,197.4,8.064e-05,2]
[402654622,1768748899642,296.09,8.431e-05,2]
[402654623,1768748900048,394.79,8.797e-05,2]
[402654624,1768748900459,493.49,9.164e-05,2]
[402654625,1768748950547,-1445.9,9.2e-05,2]
[402654626,1768748950580,-345.42943999,9.31e-05,2]
[402654627,1768748950610,-551.0,9.333e-05,2]
[402654628,1768748950640,-426.029,9.5e-05,2]
[402654629,1768748950673,-592.19,9.53e-05,2]
[402654630,1768748976376,220.72,8.537e-05,2]
[402654631,1768748976825,294.3,8.909e-05,2]
[402654632,1768748977231,367.87,9.28e-05,2]
[402654655,1768749032063,-302.0,9.594e-05,2]
[402654656,1768749034640,644.66382185,9.593e-05,2]
[402654657,1768749034674,258.87239262,9.593e-05,2]
[402654658,1768749035739,500.0,9.593e-05,2]
[402654659,1768749035779,500.0,9.593e-05,2]
[402654660,1768749035852,492.48690555,9.593e-05,2]
[402654661,1768749035879,6.73219279,9.593e-05,2]
[402654662,1768749035910,500.0,9.593e-05,2]
[402654663,1768749035965,500.0,9.593e-05,2]
[402654664,1768749035998,308.51853449,9.593e-05,2]
[402654677,1768749038280,-999698.0,9.594e-05,2]
[402654678,1768749038290,-554.0,9.594e-05,2]
[402654679,1768749038300,-333.7891958,9.594e-05,2]
[402654680,1768749038310,-441.45,9.651e-05,2]
[402654681,1768749038319,-515.02,0.00010022,2]
[402654682,1768749038329,-588.6,0.00010393,2]
[402654683,1768749038338,-166.0,0.00010654,2]
[402654684,1768749038348,-662.17,0.00010764,2]
[402654685,1768749038357,-156.0,0.00010773,2]
[402654686,1768749038367,-6360.71515941,0.00010773,2]
[402654687,1768749038376,-222.0,0.00010827,2]
[402654688,1768749038386,-735.75,0.00011136,2]
[402654689,1768749038396,-407.60673919,0.0001131,2]
[402654690,1768749038405,-155.0,0.0001146,2]
[402654691,1768749038415,-333.78919576,0.0001159,2]
[402654692,1768749038424,-211.0,0.00012328,2]
[402654693,1768749038434,-302.0,0.00012329,2]
[402654694,1768749038443,-5801.56563432,0.000129,2]
[402654695,1768749038453,-5801.56563429,0.000129,2]
[402654696,1768749038463,-469.78403839,0.0001331,2]